bitfinex/quotes_BTCUSD_20240703
["timestamp","ask_amount","ask_price","bid_price","bid_amount"]
[1720019995769,0.01370423,60290.0,60283.0,0.14005582]
[1720019995969,0.01370423,60289.0,60283.0,0.14405582]
[1720019996143,0.1,60291.0,60285.0,0.0599]
[1720019996144,0.01370423,60288.0,60285.0,0.0599]
[1720019996346,0.01360423,60287.0,60285.0,0.0599]
[1720019996555,0.1,60291.0,60285.0,0.0599]
[1720019996762,0.1,60291.0,60283.0,0.14005582]
[1720019996963,0.1,60291.0,60285.0,0.003]
[1720019997399,0.1,60291.0,60285.0,0.0629]
[1720019997600,0.1,60291.0,60285.0,0.003]
[1720019997798,0.1,60291.0,60285.0,0.0629]
[1720019998238,0.101,60291.0,60285.0,0.0669]
[1720019998438,0.101,60291.0,60285.0,0.004]
[1720019998561,0.1,60291.0,60285.0,0.0599]
[1720019998962,0.1,60291.0,60285.0,0.0609]
[1720019999581,0.101,60291.0,60285.0,0.0609]
[1720020000668,0.101,60291.0,60285.0,0.001]
[1720020000914,0.101,60291.0,60285.0,0.0011]
[1720020001638,0.0778,60290.0,60285.0,0.0011]
[1720020002058,0.0778,60290.0,60285.0,0.061]
[1720020002257,0.0778,60290.0,60285.0,0.0011]
[1720020002456,0.16121525,60292.0,60285.0,0.0011]
[1720020003075,0.16121525,60292.0,60285.0,0.0001]
[1720020003215,0.02872862,60292.0,60285.0,0.06]
[1720020003417,0.2394,60292.0,60285.0,0.06]
[1720020004073,0.2394,60292.0,60286.0,0.0599]
[1720020004254,0.2394,60292.0,60285.0,0.06]
[1720020004452,0.11370409,60291.0,60286.0,0.0599]
[1720020004631,0.01370409,60290.0,60286.0,0.0599]
[1720020004837,0.01370409,60289.0,60286.0,0.0599]
[1720020005189,0.1,60291.0,60288.0,0.3453]
[1720020005325,0.01370436,60290.0,60288.0,0.1274]
[1720020005520,0.01370436,60289.0,60286.0,0.1274]
[1720020005743,0.01370436,60288.0,60286.0,0.1274]
[1720020005950,0.01370436,60287.0,60286.0,0.1274]
[1720020006988,0.01370414,60287.0,60286.0,0.1274]
[1720020007188,0.01370353,60287.0,60286.0,0.1274]
[1720020008249,0.25310353,60287.0,60286.0,0.004]
[1720020008432,0.35310353,60287.0,60285.0,0.0001]
[1720020008636,0.11370353,60286.0,60285.0,0.0001]
[1720020010124,0.1137028,60286.0,60285.0,0.0001]
[1720020011564,0.1137028,60286.0,60285.0,0.0011]
[1720020012753,0.1137028,60286.0,60285.0,0.0051]
[1720020013486,0.1137134,60286.0,60285.0,0.0051]
[1720020014471,0.1137134,60286.0,60285.0,0.14992558]
[1720020014667,0.1,60286.0,60285.0,0.14992558]
[1720020015839,0.1793106,60292.0,60285.0,0.14992558]
[1720020015988,0.3396094,60292.0,60285.0,0.1414]
[1720020016189,0.36821542,60292.0,60285.0,0.1414]
[1720020016710,0.1,60291.0,60285.0,0.1414]
[1720020017057,0.1,60291.0,60285.0,0.1374]
[1720020017484,0.1,60291.0,60285.0,0.1364]
[1720020018061,0.1,60291.0,60285.0,0.0001]
[1720020018667,0.1,60291.0,60285.0,0.001013]
[1720020018868,0.2394,60289.0,60285.0,0.001013]
[1720020019081,0.1,60288.0,60285.0,0.001013]
[1720020019749,0.1602988,60287.0,60285.0,0.001013]
[1720020019950,0.1,60286.0,60285.0,0.001013]
[1720020021367,0.1,60286.0,60285.0,0.002013]
[1720020021778,0.003,60291.0,60286.0,0.3025]
[1720020022364,0.02860602,60292.0,60286.0,0.3025]
[1720020022557,0.12951192,60293.0,60286.0,0.3025]
[1720020022765,0.0509141,60292.0,60286.0,0.3025]
[1720020022965,0.28981072,60293.0,60286.0,0.3025]
[1720020023318,0.05091372,60292.0,60286.0,0.3624]
[1720020023762,0.05091372,60292.0,60286.0,0.3025]
[1720020023957,0.005,60291.0,60286.0,0.3025]
[1720020024184,0.005,60291.0,60288.0,0.0599]
[1720020024403,0.05491372,60292.0,60289.0,0.0599]
[1720020024618,0.004,60292.0,60291.0,0.0599]
[1720020024843,0.011,60292.0,60291.0,0.0599]
[1720020024966,0.011,60292.0,60291.0,0.3584]
[1720020025159,0.004,60292.0,60291.0,0.3584]
[1720020025381,0.7838,60307.0,60291.0,0.3584]
[1720020025382,0.24515527,60313.0,60300.0,0.3604]
[1720020025586,0.24515527,60313.0,60300.0,0.46737263]
[1720020026038,0.02870088,60306.0,60300.0,0.46737263]
[1720020027317,0.00835,60318.0,60300.0,0.46737263]
[1720020027493,0.00835,60318.0,60300.0,0.65767143]
[1720020027693,0.00983,60301.0,60300.0,0.65767143]
[1720020027975,0.00983,60301.0,60300.0,0.65867143]
[1720020028147,0.00835,60318.0,60317.0,0.3576]
[1720020030217,0.00835,60318.0,60317.0,0.46457263]
[1720020030842,0.01035,60318.0,60317.0,0.47957263]
[1720020031827,0.01035,60318.0,60317.0,0.50957263]
[1720020032052,0.01035,60318.0,60317.0,0.47957263]
[1720020032607,0.01035,60318.0,60317.0,0.50957263]
[1720020032777,0.01035,60318.0,60317.0,0.47957263]
[1720020032981,0.01035,60318.0,60317.0,0.50957263]
[1720020033177,0.01035,60318.0,60317.0,0.47957263]
[1720020033614,0.01035,60318.0,60317.0,0.50957263]
[1720020033787,0.01035,60318.0,60317.0,0.66987143]
[1720020035442,0.01035,60318.0,60317.0,0.47957263]
[1720020038858,0.01035,60318.0,60317.0,0.50957263]
[1720020040163,0.01035,60318.0,60317.0,0.50967263]
[1720020040362,0.01035,60318.0,60317.0,0.47967263]
[1720020040571,0.01035,60318.0,60317.0,0.47977263]
[1720020041046,0.01035,60318.0,60317.0,0.0751]
[1720020041375,0.01035,60318.0,60317.0,0.49697263]
[1720020042117,0.01035,60318.0,60317.0,0.52697263]
[1720020042322,0.01035,60318.0,60317.0,0.68727143]
[1720020044260,0.01035,60318.0,60317.0,0.67827143]
[1720020044261,0.00935,60318.0,60317.0,0.67827143]
[1720020044657,0.01035,60318.0,60317.0,0.68627143]
[1720020044858,0.00835,60318.0,60317.0,0.67227143]
[1720020045015,0.00835,60318.0,60317.0,0.68627143]
[1720020045016,0.00935,60318.0,60317.0,0.68627143]
[1720020045223,0.01035,60318.0,60317.0,0.69427143]
[1720020045809,0.00935,60318.0,60317.0,0.68027143]
[1720020046008,0.01035,60318.0,60317.0,0.69427143]
[1720020047270,0.00935,60318.0,60317.0,0.68027143]
[1720020047982,0.00835,60318.0,60317.0,0.67227143]
[1720020048421,0.00935,60318.0,60317.0,0.68627143]
[1720020048630,0.01035,60318.0,60317.0,0.70027143]
[1720020048955,0.00935,60318.0,60317.0,0.68627143]
[1720020049248,0.00835,60318.0,60317.0,0.67227143]
[1720020049473,0.00935,60318.0,60317.0,0.68627143]
[1720020049646,0.01035,60318.0,60317.0,0.68627143]
[1720020049847,0.00935,60318.0,60317.0,0.68627143]
[1720020050299,0.00835,60318.0,60317.0,0.67227143]
[1720020050532,0.00935,60318.0,60317.0,0.68627143]
[1720020051960,0.00835,60318.0,60317.0,0.67227143]
[1720020052193,0.01035,60318.0,60317.0,0.70027143]
[1720020052636,0.00935,60318.0,60317.0,0.68627143]
[1720020053106,0.01035,60318.0,60317.0,0.70027143]
[1720020055587,0.01035,60318.0,60317.0,0.67027143]
[1720020055863,0.01035,60318.0,60317.0,0.70027143]
[1720020057145,0.01035,60318.0,60317.0,0.50997263]
[1720020057844,0.01035,60318.0,60317.0,0.32887263]
[1720020058077,0.01035,60318.0,60317.0,0.97887263]
[1720020058336,0.00835,60318.0,60317.0,0.95087263]
[1720020058570,0.00835,60318.0,60317.0,0.96287263]
[1720020058981,0.00835,60318.0,60317.0,0.99287263]
[1720020059186,0.00835,60318.0,60317.0,1.29347143]
[1720020059587,0.00835,60318.0,60317.0,1.30047143]
[1720020059804,0.00835,60318.0,60317.0,0.65047143]
[1720020059941,0.00835,60318.0,60317.0,0.68047143]
[1720020060146,0.00835,60318.0,60317.0,0.66847143]
[1720020060413,0.00835,60318.0,60317.0,0.68247143]
[1720020061187,0.00835,60318.0,60317.0,0.69547143]
[1720020061752,0.00835,60318.0,60317.0,0.68247143]
[1720020063620,0.00935,60318.0,60317.0,0.69647143]
[1720020064029,0.00835,60318.0,60317.0,0.66847143]
[1720020064381,0.00935,60318.0,60317.0,1.32034511]
[1720020064581,0.00935,60318.0,60317.0,1.33434511]
[1720020064709,0.00835,60318.0,60317.0,1.32034511]
[1720020064910,0.00835,60318.0,60317.0,1.35578007]
[1720020065213,0.00835,60318.0,60317.0,1.38049756]
[1720020065433,0.00835,60318.0,60317.0,1.54628756]
[1720020065633,0.00835,60318.0,60317.0,1.38049756]
[1720020066040,0.00835,60318.0,60317.0,1.30634511]
[1720020066303,0.00835,60318.0,60317.0,1.47213511]
[1720020066516,0.00835,60330.0,60329.0,0.50437263]
[1720020066721,0.00835,60330.0,60329.0,0.66467143]
[1720020067249,0.00835,60330.0,60329.0,0.96467143]
[1720020067461,0.00835,60330.0,60329.0,0.66467143]
[1720020067861,0.00935,60330.0,60329.0,0.97867143]
[1720020068360,0.00835,60330.0,60329.0,0.96467143]
[1720020068531,0.00835,60330.0,60329.0,0.97867143]
[1720020069293,0.00835,60330.0,60329.0,1.05293391]
[1720020069706,0.00835,60330.0,60329.0,1.03903391]
[1720020070069,0.00835,60330.0,60329.0,1.03913391]
[1720020070273,0.00835,60330.0,60329.0,1.07808472]
[1720020070480,0.00835,60330.0,60329.0,0.97887143]
[1720020070682,0.00835,60330.0,60329.0,0.96237143]
[1720020070809,0.07929484,60351.0,60350.0,0.10697263]
[1720020071421,0.07929484,60351.0,60346.0,0.10697263]
[1720020071422,0.10770249,60351.0,60346.0,0.10697263]
[1720020072621,1.10770249,60351.0,60346.0,0.10697263]
[1720020073029,0.1,60350.0,60346.0,0.12200989]
[1720020073183,0.1,60350.0,60346.0,0.12190989]
[1720020073794,0.1,60350.0,60347.0,0.0434]
[1720020074017,1.1,60350.0,60347.0,0.0434]
[1720020074220,1.1,60350.0,60346.0,0.12190989]
[1720020074421,1.1,60350.0,60346.0,0.16530989]
[1720020075222,1.1,60350.0,60347.0,0.0434]
[1720020075623,1.1,60350.0,60346.0,0.10687263]
[1720020075624,1.1,60350.0,60346.0,0.15027263]
[1720020076233,1.1,60350.0,60347.0,0.0434]
[1720020076435,1.1,60350.0,60347.0,0.0433]
[1720020076781,1.1,60350.0,60346.0,0.15017263]
[1720020077127,1.1,60350.0,60347.0,0.0433]
[1720020077329,1.1,60350.0,60348.0,0.01501726]
[1720020077525,1.1,60350.0,60349.0,0.0433]
[1720020077782,1.1,60350.0,60349.0,0.15017263]
[1720020079766,1.1,60350.0,60349.0,0.15007263]
[1720020079970,1.0,60350.0,60349.0,0.31368533]
[1720020080239,1.0,60350.0,60349.0,0.64638533]
[1720020080596,1.0,60350.0,60349.0,0.65538533]
[1720020081370,1.0,60350.0,60349.0,0.65238533]
[1720020081568,1.0,60350.0,60349.0,0.66038533]
[1720020081743,1.0,60350.0,60349.0,0.65707143]
[1720020082079,1.0,60350.0,60349.0,0.62707143]
[1720020082908,1.0,60350.0,60349.0,0.64307143]
[1720020083211,1.0,60350.0,60349.0,0.66807143]
[1720020083411,1.0,60350.0,60349.0,0.63807143]
[1720020083613,1.0,60350.0,60349.0,0.62707143]
[1720020084008,1.0,60350.0,60349.0,0.64107143]
[1720020084416,1.0,60350.0,60349.0,0.67107143]
[1720020085621,1.0,60350.0,60349.0,0.67117143]
[1720020086010,1.0,60350.0,60349.0,0.97117143]
[1720020086154,1.0,60350.0,60349.0,0.67117143]
[1720020086774,1.0,60350.0,60349.0,0.67127143]
[1720020088452,1.0,60350.0,60349.0,0.97127143]
[1720020088830,1.0,60350.0,60349.0,0.97218443]
[1720020089942,1.00083,60350.0,60349.0,0.97218443]
[1720020090483,1.00083,60350.0,60349.0,0.97208443]
[1720020091074,1.00083,60350.0,60349.0,0.97218443]
[1720020091375,0.78691455,60350.0,60349.0,1.63788643]
[1720020091579,0.78691455,60350.0,60349.0,1.66088643]
[1720020091730,0.78701455,60350.0,60349.0,1.66088643]
[1720020092337,0.78701455,60350.0,60349.0,1.19518443]
[1720020092537,0.78701455,60350.0,60349.0,1.49518443]
[1720020092740,0.78701455,60350.0,60349.0,1.99229143]
[1720020093363,0.78701455,60350.0,60349.0,1.66088643]
[1720020093747,0.78701455,60350.0,60349.0,1.49518443]
[1720020094163,0.78701455,60350.0,60349.0,1.19518443]
[1720020094364,0.78701455,60350.0,60349.0,1.49518443]
[1720020094548,0.64151455,60350.0,60349.0,1.99229143]
[1720020094759,0.64151455,60350.0,60349.0,2.09229143]
[1720020095205,0.64151455,60350.0,60349.0,2.42369643]
[1720020095404,0.64151455,60350.0,60349.0,1.71929143]
[1720020095606,0.64151455,60350.0,60349.0,1.61695437]
[1720020095992,0.64151455,60350.0,60349.0,1.20795437]
[1720020096395,0.64151455,60350.0,60349.0,1.17995437]
[1720020096775,0.64151455,60350.0,60349.0,1.19395437]
[1720020097129,0.64151455,60350.0,60349.0,1.20795437]
[1720020097347,0.64151455,60350.0,60349.0,1.65965637]
[1720020097572,0.64151455,60350.0,60349.0,2.02806137]
[1720020098791,0.64151455,60350.0,60349.0,2.35946637]
[1720020098990,0.64151455,60350.0,60349.0,2.34546637]
[1720020099152,0.64151455,60350.0,60349.0,2.35946637]
[1720020099892,0.64151455,60350.0,60349.0,2.33146637]
[1720020100086,0.64151455,60350.0,60349.0,2.35946637]
[1720020100531,0.64151455,60350.0,60349.0,2.34546637]
[1720020100708,0.64151455,60350.0,60349.0,2.35946637]
[1720020100911,0.54151455,60350.0,60349.0,2.35946637]
[1720020101206,0.54151455,60350.0,60349.0,2.69087137]
[1720020101644,0.54151455,60350.0,60349.0,2.67687137]
[1720020102750,0.54151455,60350.0,60349.0,2.66287137]
[1720020102949,0.54151455,60350.0,60349.0,2.90064267]
[1720020103150,0.54151455,60350.0,60349.0,2.91464267]
[1720020103784,0.54151455,60350.0,60349.0,2.90064267]
[1720020103959,0.54151455,60350.0,60349.0,2.56923767]
[1720020104161,0.54151455,60350.0,60349.0,2.45946637]
[1720020104337,0.54151455,60350.0,60349.0,2.64667572]
[1720020104541,0.54151455,60350.0,60349.0,2.97808072]
[1720020104741,0.54151455,60350.0,60349.0,2.96408072]
[1720020105147,0.54151455,60350.0,60349.0,2.97808072]
[1720020105355,0.54151455,60350.0,60349.0,2.92864329]
[1720020105762,0.54151455,60350.0,60349.0,2.79087137]
[1720020105963,0.54151455,60350.0,60349.0,2.92863895]
[1720020106143,0.54151455,60350.0,60349.0,3.02756618]
[1720020106503,0.54151455,60350.0,60349.0,2.92862994]
[1720020107428,0.54151455,60350.0,60349.0,3.05226643]
[1720020108311,0.54151455,60350.0,60349.0,2.92862994]
[1720020108890,0.54151455,60350.0,60349.0,2.79087137]
[1720020109095,0.54151455,60350.0,60349.0,2.9286284]
[1720020109304,0.54151455,60350.0,60349.0,2.92862843]
[1720020109499,0.54151455,60350.0,60349.0,3.16802843]
[1720020109701,0.54151455,60350.0,60349.0,3.29173597]
[1720020110113,0.54151455,60350.0,60349.0,3.16802843]
[1720020110330,0.54151455,60350.0,60349.0,3.29173597]
[1720020111627,0.54151455,60350.0,60349.0,3.05233597]
[1720020111830,0.54151455,60350.0,60349.0,3.29173597]
[1720020112164,0.54151455,60350.0,60349.0,3.03027137]
[1720020112364,0.54151455,60350.0,60349.0,3.29181525]
[1720020112783,0.54151455,60350.0,60349.0,3.1680371]
[1720020117383,0.54151455,60350.0,60349.0,3.16802707]
[1720020117620,0.54151455,60350.0,60349.0,3.49943207]
[1720020118234,0.48342455,60350.0,60349.0,3.49943207]
[1720020118471,0.00834,60355.0,60352.0,0.63]
[1720020118669,0.00834,60355.0,60354.0,0.97997263]
[1720020118878,0.00833,60356.0,60355.0,1.47693063]
[1720020119089,0.00833,60356.0,60355.0,2.84832913]
[1720020119313,0.00833,60357.0,60356.0,1.47682263]
[1720020119523,0.00833,60357.0,60356.0,2.85881113]
[1720020119731,0.19322737,60404.0,60356.0,2.85881113]
[1720020119732,0.18944,60379.0,60360.0,2.46067963]
[1720020119945,0.18944,60379.0,60360.0,3.57630912]
[1720020120151,0.18944,60379.0,60361.0,2.46265863]
[1720020120359,0.18944,60379.0,60361.0,2.82611325]
[1720020120565,0.18944,60379.0,60361.0,2.99709224]
[1720020120980,0.18944,60379.0,60361.0,2.99709324]
[1720020122449,0.18944,60379.0,60361.0,3.01109324]
[1720020122603,0.18944,60379.0,60361.0,3.01099324]
[1720020122853,0.18944,60379.0,60378.0,0.17987263]
[1720020122854,0.00834,60379.0,60378.0,0.17987263]
[1720020123054,0.00834,60379.0,60378.0,1.16263892]
[1720020123810,0.00834,60379.0,60378.0,1.32826192]
[1720020124343,0.00834,60379.0,60378.0,1.95619625]
[1720020124550,0.00834,60379.0,60378.0,2.64168825]
[1720020124958,0.00834,60379.0,60378.0,1.66195025]
[1720020125169,0.00834,60379.0,60378.0,0.79347143]
[1720020125381,0.00834,60379.0,60378.0,0.76337143]
[1720020125596,0.00834,60379.0,60378.0,0.50997143]
[1720020125837,0.00834,60379.0,60378.0,0.55397143]
[1720020126037,0.00834,60379.0,60378.0,0.58971145]
[1720020126447,0.00834,60379.0,60378.0,0.77937143]
[1720020126961,0.00834,60379.0,60378.0,1.07907143]
[1720020127167,0.00834,60379.0,60378.0,1.56769443]
[1720020127430,0.00834,60379.0,60378.0,1.87989443]
[1720020127636,0.00834,60379.0,60378.0,1.89389443]
[1720020127827,0.00834,60379.0,60378.0,2.22514043]
[1720020128051,0.0003,60382.0,60381.0,1.80744763]
[1720020128254,0.0003,60382.0,60381.0,2.13164643]
[1720020128462,0.0003,60382.0,60381.0,2.30814643]
[1720020129250,0.0003,60382.0,60381.0,2.32214643]
[1720020129477,0.3315,60398.0,60395.0,0.17977263]
[1720020129478,0.1818,60398.0,60395.0,0.17977263]
[1720020129687,0.1425,60401.0,60395.0,0.57947143]
[1720020130115,0.1723,60403.0,60395.0,0.57947143]
[1720020130390,0.1723,60403.0,60395.0,0.87917143]
[1720020130620,0.1723,60403.0,60395.0,0.57947143]
[1720020131281,0.1723,60403.0,60395.0,0.34007143]
[1720020131510,0.1723,60403.0,60395.0,0.57947143]
[1720020131739,0.1723,60403.0,60395.0,0.59347143]
[1720020132214,0.1723,60403.0,60395.0,0.57947143]
[1720020132684,0.1723,60403.0,60395.0,0.59347143]
[1720020132935,0.1723,60403.0,60395.0,0.87917143]
[1720020133139,0.1723,60403.0,60395.0,0.57947143]
[1720020133391,0.1723,60403.0,60395.0,0.59347143]
[1720020133609,0.1723,60403.0,60395.0,0.56347143]
[1720020133820,0.1723,60403.0,60395.0,0.59347143]
[1720020134044,0.1723,60403.0,60395.0,0.60747143]
[1720020134693,0.1723,60403.0,60395.0,0.59347143]
[1720020135126,0.1723,60403.0,60395.0,0.87917143]
[1720020135341,0.1723,60403.0,60395.0,0.89317143]
[1720020135573,0.1723,60403.0,60395.0,0.59347143]
[1720020136064,0.1723,60403.0,60395.0,0.56347143]
[1720020136308,0.3474241,60396.0,60395.0,0.32407143]
[1720020136528,0.3474241,60396.0,60395.0,0.31007143]
[1720020136774,0.3474241,60396.0,60395.0,0.32407143]
[1720020137214,0.3474241,60396.0,60395.0,0.31007143]
[1720020137434,0.3474241,60396.0,60395.0,0.32397143]
[1720020137678,0.3474241,60396.0,60395.0,0.35397143]
[1720020137679,0.1964241,60396.0,60395.0,0.35397143]
[1720020137956,0.0121241,60396.0,60395.0,0.35397143]
[1720020138152,0.0121241,60396.0,60395.0,0.65367143]
[1720020138848,0.0121241,60396.0,60395.0,0.36797143]
[1720020139081,0.0121241,60396.0,60395.0,0.35397143]
[1720020139325,0.0121241,60396.0,60395.0,0.33997143]
[1720020139558,0.0121241,60396.0,60395.0,0.35397143]
[1720020140680,0.0121241,60396.0,60395.0,1.02027143]
[1720020141814,0.0121241,60396.0,60395.0,1.03427143]
[1720020142055,0.0121241,60396.0,60395.0,1.04817143]
[1720020142282,0.0121241,60396.0,60395.0,0.73447143]
[1720020142498,0.0121241,60396.0,60395.0,1.04817143]
[1720020142722,0.0121241,60396.0,60395.0,1.03417143]
[1720020143208,0.0121241,60396.0,60395.0,1.04817143]
[1720020143685,0.0121241,60396.0,60395.0,0.56777143]
[1720020143927,0.0121241,60396.0,60395.0,1.10687143]
[1720020144888,0.0121241,60396.0,60395.0,1.40697143]
[1720020145137,0.0121241,60396.0,60395.0,1.13027143]
[1720020145389,0.0121241,60396.0,60395.0,1.11627143]
[1720020145660,0.0121241,60396.0,60395.0,0.80737143]
[1720020145879,0.0121241,60396.0,60395.0,0.79327143]
[1720020146109,0.0121241,60396.0,60395.0,0.77927143]
[1720020146585,0.0121241,60396.0,60395.0,0.79327143]
[1720020147037,0.0121241,60396.0,60395.0,0.77927143]
[1720020147490,0.0121241,60396.0,60395.0,1.09297143]
[1720020148210,0.0121241,60396.0,60395.0,1.39297143]
[1720020148401,0.0121241,60396.0,60395.0,1.77094743]
[1720020148624,0.0121241,60396.0,60395.0,2.11610043]
[1720020148824,0.0121241,60396.0,60395.0,2.25376485]
[1720020149046,0.0121241,60396.0,60395.0,1.92261185]
[1720020149183,0.0121241,60396.0,60395.0,1.74314232]
[1720020149383,0.0121241,60396.0,60395.0,1.92271832]
[1720020149700,0.0121241,60396.0,60395.0,2.11620043]
[1720020149904,0.0121241,60396.0,60395.0,2.10220043]
[1720020150107,0.0121241,60396.0,60395.0,1.77114743]
[1720020150468,0.0121241,60396.0,60395.0,2.11630043]
[1720020150656,0.0121241,60396.0,60395.0,2.10230043]
[1720020151044,0.04121362,60408.0,60407.0,0.11977263]
[1720020151226,0.04121362,60408.0,60407.0,0.31308177]
[1720020152287,0.00834,60411.0,60410.0,0.17947263]
[1720020152586,0.00834,60411.0,60410.0,0.34308132]
[1720020153318,0.00834,60411.0,60410.0,0.31308132]
[1720020153524,0.00834,60411.0,60410.0,0.30977143]
[1720020153923,0.00834,60411.0,60410.0,0.32377143]
[1720020154133,0.00834,60411.0,60410.0,0.32367143]
[1720020154914,0.00834,60411.0,60410.0,0.35367143]
[1720020155530,0.00834,60411.0,60410.0,0.32367143]
[1720020155933,0.00834,60411.0,60410.0,0.33767143]
[1720020156993,0.00834,60411.0,60410.0,0.36767143]
[1720020157407,0.00834,60411.0,60410.0,0.60707143]
[1720020157935,0.00834,60411.0,60410.0,0.59307143]
[1720020158975,0.00834,60411.0,60410.0,0.89277143]
[1720020159322,0.00834,60411.0,60410.0,0.59307143]
[1720020159590,0.00834,60411.0,60410.0,0.60707143]
[1720020159810,0.00834,60411.0,60410.0,0.60717143]
[1720020159971,0.00834,60411.0,60410.0,0.57727143]
[1720020160175,0.00834,60411.0,60410.0,0.32387143]
[1720020160380,0.00834,60411.0,60410.0,0.29527143]
[1720020160381,0.20364,60411.0,60410.0,0.29527143]
[1720020160577,0.33564,60411.0,60410.0,0.29527143]
[1720020161379,0.33564,60411.0,60410.0,0.28127143]
[1720020161577,0.33564,60411.0,60410.0,0.29527143]
[1720020161810,0.33564,60411.0,60410.0,0.28127143]
[1720020161973,0.33564,60411.0,60410.0,0.29527143]
[1720020162378,0.33564,60411.0,60410.0,0.28127143]
[1720020162959,0.33564,60411.0,60410.0,0.29527143]
[1720020163171,0.33534,60411.0,60410.0,0.33787143]
[1720020163380,0.20364,60411.0,60410.0,0.33787143]
[1720020164107,0.20394,60411.0,60410.0,0.29527143]
[1720020164350,0.33564,60411.0,60410.0,0.29527143]
[1720020164507,0.33564,60411.0,60410.0,0.33787143]
[1720020164950,0.33564,60411.0,60410.0,0.29527143]
[1720020165318,0.33564,60411.0,60410.0,0.13497263]
[1720020165548,0.33564,60411.0,60410.0,0.0282]
[1720020165749,0.67504,60411.0,60410.0,0.011156]
[1720020165949,0.70579571,60411.0,60410.0,0.011156]
[1720020166204,0.70579571,60411.0,60396.0,0.10677263]
[1720020166205,0.0003,60398.0,60396.0,0.10677263]
[1720020166412,0.0651,60397.0,60396.0,0.10677263]
[1720020166835,0.0651,60397.0,60396.0,0.14937263]
[1720020167069,0.0651,60397.0,60396.0,0.26707143]
[1720020167283,0.3067,60400.0,60399.0,0.14937263]
[1720020167487,0.3067,60400.0,60399.0,0.30967143]
[1720020168879,0.3066,60400.0,60399.0,0.30967143]
[1720020169764,0.3066,60400.0,60399.0,0.33267143]
[1720020169765,0.3086,60400.0,60399.0,0.33267143]
[1720020170176,0.1881,60400.0,60399.0,0.33267143]
[1720020170776,0.1884,60400.0,60399.0,0.33267143]
[1720020171169,0.1881,60400.0,60399.0,0.33267143]
[1720020171546,0.1881,60400.0,60399.0,0.29007143]
[1720020171985,0.3089,60400.0,60399.0,0.33267143]
[1720020172327,0.3086,60400.0,60399.0,0.33260576]
[1720020173181,0.3085,60400.0,60399.0,0.33260576]
[1720020173435,0.0019,60400.0,60399.0,0.33260576]
[1720020174911,0.0018,60400.0,60399.0,0.33260576]
[1720020175484,0.0018,60400.0,60399.0,0.32160576]
[1720020175485,0.0009,60400.0,60399.0,0.32160576]
[1720020175948,0.0009,60400.0,60399.0,0.5963164]
[1720020175949,0.0001,60400.0,60399.0,0.5963164]
[1720020176341,0.0001,60400.0,60399.0,0.6103164]
[1720020176673,0.0001,60400.0,60399.0,0.60700576]
[1720020176832,0.0002,60400.0,60399.0,0.60710576]
[1720020177015,0.0002,60400.0,60399.0,0.74960576]
[1720020177210,0.0002,60400.0,60399.0,1.43880576]
[1720020177661,0.0002,60400.0,60399.0,1.43910576]
[1720020177819,0.0002,60400.0,60399.0,1.46210576]
[1720020178473,0.0002,60400.0,60399.0,1.76180576]
[1720020178665,0.0002,60400.0,60399.0,1.44810576]
[1720020179038,0.0002,60400.0,60399.0,1.46210576]
[1720020179232,0.0002,60400.0,60399.0,1.46220576]
[1720020179434,0.0002,60400.0,60399.0,1.44820576]
[1720020179856,0.0012,60400.0,60399.0,1.46220576]
[1720020180936,0.0012,60400.0,60399.0,0.53770576]
[1720020181557,0.0012,60400.0,60399.0,0.33780576]
[1720020183149,0.0012,60400.0,60399.0,0.53770576]
[1720020183580,0.0012,60400.0,60399.0,0.71430576]
[1720020183794,0.0012,60400.0,60399.0,0.68430576]
[1720020183975,0.0012,60400.0,60399.0,0.71430576]
[1720020184180,0.0012,60400.0,60399.0,0.48440576]
[1720020184540,0.0012,60400.0,60399.0,0.68430576]
[1720020184745,0.0012,60400.0,60399.0,0.71430576]
[1720020184942,0.0012,60400.0,60399.0,1.41927076]
[1720020185146,0.0012,60400.0,60399.0,1.74197076]
[1720020185374,0.0012,60400.0,60399.0,1.27670576]
[1720020185928,0.0012,60400.0,60399.0,1.57640576]
[1720020186136,0.0012,60400.0,60399.0,1.27670576]
[1720020186675,0.0012,60400.0,60399.0,1.57640576]
[1720020186880,0.0012,60400.0,60399.0,2.07310176]
[1720020190217,0.0012,60400.0,60399.0,2.59933276]
[1720020191070,0.00834,60411.0,60410.0,0.94930696]
[1720020191282,0.00834,60411.0,60410.0,2.57898276]
[1720020191872,0.00834,60411.0,60410.0,2.91005376]
[1720020192450,0.00834,60411.0,60410.0,2.92405376]
[1720020192880,0.00834,60411.0,60410.0,2.91005376]
[1720020193103,0.00834,60411.0,60410.0,2.93805376]
[1720020193516,0.00834,60411.0,60410.0,2.97132376]
[1720020193946,0.00834,60411.0,60410.0,2.95732376]
[1720020194152,0.00834,60411.0,60410.0,2.97382376]
[1720020194393,0.00619385,60412.0,60411.0,2.10803396]
[1720020194569,0.3063,60436.0,60435.0,0.14930696]
[1720020194875,0.3063,60436.0,60435.0,0.30960576]
[1720020196486,0.3063,60436.0,60435.0,0.32160576]
[1720020196892,0.3063,60436.0,60435.0,0.33460576]
[1720020197851,0.3063,60436.0,60435.0,0.32160576]
[1720020198261,0.3063,60436.0,60435.0,0.31970576]
[1720020198702,0.00835,60440.0,60439.0,0.10670696]
[1720020198907,0.31395,60440.0,60439.0,0.30770576]
[1720020199431,0.00835,60440.0,60439.0,0.54710576]
[1720020199785,0.00835,60440.0,60439.0,0.30770576]
[1720020199990,0.00835,60440.0,60439.0,0.31870576]
[1720020200672,0.00835,60440.0,60439.0,0.33770576]
[1720020201290,0.00835,60440.0,60439.0,0.30770576]
[1720020201507,0.00835,60440.0,60439.0,0.33770576]
[1720020201834,0.00835,60440.0,60439.0,0.30770576]
[1720020202038,0.00835,60440.0,60439.0,0.32170576]
[1720020202451,0.00835,60440.0,60439.0,0.35501438]
[1720020202590,0.00835,60440.0,60439.0,0.33570576]
[1720020202789,0.00835,60440.0,60439.0,0.36570576]
[1720020202992,0.00835,60440.0,60439.0,0.33570576]
[1720020203688,0.00835,60440.0,60439.0,0.32170576]
[1720020204207,0.00835,60440.0,60439.0,0.30770576]
[1720020204612,0.00835,60440.0,60439.0,0.32170576]
[1720020204831,0.00835,60440.0,60439.0,0.33570576]
[1720020205331,0.00835,60440.0,60439.0,0.33510576]